bitfinex/quotes_BTCUSD_20230113
["timestamp","ask_amount","ask_price","bid_price","bid_amount"]
[1673568000481,0.43198838,18857.0,18855.0,0.01930234]
[1673568000741,0.43198838,18857.0,18855.0,0.01530234]
[1673568000991,0.0085,18856.0,18855.0,0.6644802]
[1673568003745,0.0085,18856.0,18854.0,0.69476116]
[1673568004473,0.0395,18856.0,18855.0,0.008]
[1673568005483,0.0085,18856.0,18854.0,0.69476116]
[1673568005734,0.0405,18856.0,18854.0,0.69576116]
[1673568005986,0.54766719,18857.0,18854.0,0.69476116]
[1673568006245,0.54849439,18856.0,18855.0,0.008]
[1673568006496,0.54849439,18856.0,18854.0,0.69476116]
[1673568006497,0.51749439,18856.0,18854.0,0.69476116]
[1673568006762,0.54949439,18856.0,18854.0,0.69576116]
[1673568007009,0.78653744,18856.0,18854.0,0.001]
[1673568007512,0.85112915,18857.0,18853.0,0.06550987]
[1673568007513,0.79710363,18855.0,18853.0,0.06550987]
[1673568007758,0.79710363,18855.0,18854.0,0.001]
[1673568008006,1.11316103,18855.0,18854.0,0.001]
[1673568008264,0.79710363,18855.0,18854.0,0.001]
[1673568008511,1.11316103,18855.0,18854.0,0.001]
[1673568008754,0.95523328,18855.0,18853.0,0.01587853]
[1673568008991,1.11316103,18855.0,18853.0,0.01587853]
[1673568009234,0.15812407,18854.0,18853.0,0.01587853]
[1673568009477,0.9872277,18855.0,18853.0,0.57141972]
[1673568009722,0.71818465,18855.0,18853.0,0.57141972]
[1673568009961,0.74918465,18855.0,18853.0,0.57941972]
[1673568010225,0.71818465,18855.0,18853.0,0.78172466]
[1673568010482,0.94023887,18857.0,18854.0,0.88096557]
[1673568010727,0.30812407,18857.0,18855.0,0.428968]
[1673568010980,0.15812407,18858.0,18856.0,0.53927294]
[1673568011224,3.1001861,18861.0,18857.0,1.45122802]
[1673568011225,0.26191501,18861.0,18857.0,1.45122802]
[1673568011470,0.1214244,18859.0,18858.0,0.53927294]
[1673568011716,0.1214244,18859.0,18858.0,0.328968]
[1673568011961,0.1214244,18859.0,18857.0,0.40812407]
[1673568012440,0.1214244,18859.0,18858.0,0.328968]
[1673568012679,0.11331629,18858.0,18857.0,0.30812407]
[1673568013419,0.11331629,18858.0,18857.0,0.63709207]
[1673568013925,0.11331629,18858.0,18857.0,0.30812407]
[1673568014401,0.11331629,18858.0,18857.0,0.63709207]
[1673568014643,0.11331629,18858.0,18857.0,0.30812407]
[1673568014886,0.14331629,18858.0,18857.0,0.30912407]
[1673568015131,0.03,18858.0,18857.0,0.30912407]
[1673568016167,0.03,18858.0,18857.0,0.85445188]
[1673568016429,0.03,18858.0,18857.0,1.18341988]
[1673568016677,0.03,18858.0,18857.0,1.28341988]
[1673568023433,0.03,18858.0,18857.0,0.95445188]
[1673568023941,0.03,18858.0,18857.0,1.28341988]
[1673568031848,0.03,18858.0,18857.0,0.73809207]
[1673568032345,0.03,18858.0,18857.0,2.97850486]
[1673568032597,0.00016,18861.0,18858.0,0.15999999]
[1673568032849,0.0056389,18863.0,18859.0,0.328968]
[1673568033096,0.0056389,18863.0,18860.0,0.53927294]
[1673568033352,0.0056389,18863.0,18858.0,0.318469]
[1673568033353,0.13831881,18862.0,18861.0,0.428968]
[1673568033600,0.13831881,18862.0,18861.0,0.1]
[1673568034336,0.13831881,18862.0,18861.0,0.10036467]
[1673568034838,0.13831881,18862.0,18861.0,0.42933267]
[1673568035084,0.0056389,18863.0,18861.0,0.42933267]
[1673568035329,0.0056389,18863.0,18862.0,0.328968]
[1673568036338,0.0056389,18863.0,18862.0,0.337968]
[1673568037598,0.0056389,18863.0,18862.0,0.437968]
[1673568037850,0.0056389,18863.0,18862.0,1.1346202]
[1673568039826,0.0056389,18863.0,18862.0,1.2743202]
[1673568041340,1e-08,18863.0,18862.0,1.2743202]
[1673568046526,1e-08,18863.0,18862.0,1.59370564]
[1673568046797,1e-08,18863.0,18862.0,2.88039769]
[1673568047297,0.00667885,18864.0,18863.0,0.05471999]
[1673568047548,0.00667885,18864.0,18863.0,2.00028632]
[1673568047791,0.00667885,18864.0,18863.0,2.10028632]
[1673568048042,0.00667885,18864.0,18863.0,1.94190807]
[1673568048534,0.00667885,18864.0,18863.0,1.9419075]
[1673568049276,0.00667885,18864.0,18863.0,2.24028632]
[1673568050787,0.00667885,18864.0,18863.0,2.18599095]
[1673568051028,0.00667885,18864.0,18863.0,1.39530289]
[1673568053030,0.00667885,18864.0,18863.0,0.70929262]
[1673568053272,0.00663408,18866.0,18864.0,0.81150659]
[1673568053522,0.00663408,18866.0,18865.0,0.32933259]
[1673568054291,0.00663408,18866.0,18865.0,0.83874521]
[1673568054752,0.00663408,18866.0,18865.0,0.61677721]
[1673568055252,0.00663408,18866.0,18865.0,0.94574521]
[1673568055487,0.00663408,18866.0,18865.0,0.61677721]
[1673568055736,0.00663408,18866.0,18865.0,0.94574521]
[1673568056213,0.00663408,18866.0,18865.0,0.61677721]
[1673568056728,0.00663408,18866.0,18865.0,0.94574521]
[1673568057224,0.00663408,18866.0,18865.0,1.18644521]
[1673568059724,0.00663408,18866.0,18865.0,1.04574521]
[1673568066448,0.00663408,18866.0,18865.0,1.04538062]
[1673568066940,0.00663408,18866.0,18865.0,0.71641262]
[1673568067188,0.00663408,18866.0,18865.0,1.04538062]
[1673568068196,0.00663408,18866.0,18865.0,1.04386595]
[1673568070182,0.00663408,18866.0,18865.0,1.04423054]
[1673568071210,1e-08,18866.0,18865.0,1.04423054]
[1673568071468,1e-08,18866.0,18865.0,1.20244398]
[1673568071713,1e-08,18866.0,18865.0,0.69454603]
[1673568073447,1e-08,18866.0,18865.0,3.22772237]
[1673568073691,0.00616237,18868.0,18866.0,5.999e-05]
[1673568073954,0.00616237,18868.0,18867.0,0.328968]
[1673568074199,0.00616237,18868.0,18867.0,0.428968]
[1673568078224,0.13740257,18868.0,18867.0,0.328968]
[1673568078468,0.13740257,18868.0,18866.0,0.6020061]
[1673568079473,0.00616237,18868.0,18866.0,0.6020061]
[1673568079717,0.00616237,18868.0,18866.0,0.6370061]
[1673568081428,0.00616237,18868.0,18867.0,0.63945601]
[1673568084211,0.00616237,18868.0,18867.0,0.63982056]
[1673568084477,0.00616237,18868.0,18867.0,0.63945601]
[1673568085216,0.16429436,18868.0,18867.0,0.63945601]
[1673568085704,0.52825486,18868.0,18866.0,0.52527535]
[1673568087458,0.52825486,18868.0,18866.0,0.56027535]
[1673568087721,0.15813199,18867.0,18866.0,0.56027535]
[1673568088457,0.52825486,18868.0,18866.0,0.52527535]
[1673568088936,0.52825486,18868.0,18866.0,0.56027535]
[1673568089427,0.16429436,18868.0,18866.0,0.56027535]
[1673568089934,0.16429436,18868.0,18866.0,0.52527535]
[1673568090185,0.16429436,18868.0,18866.0,0.56027535]
[1673568091435,0.40149234,18868.0,18866.0,0.56027535]
[1673568093450,0.15813199,18867.0,18866.0,0.56027535]
[1673568094455,0.55962433,18868.0,18866.0,0.85424335]
[1673568094456,0.40149234,18868.0,18866.0,0.85424335]
[1673568094712,0.40149234,18868.0,18866.0,0.56027535]
[1673568094950,0.40149234,18868.0,18867.0,0.428968]
[1673568095199,0.40149234,18868.0,18867.0,0.1]
[1673568096198,0.40139246,18868.0,18867.0,0.73558537]
[1673568096445,0.16419448,18868.0,18867.0,0.73558537]
[1673568096945,0.16419448,18868.0,18867.0,1.06455337]
[1673568097154,0.16419448,18868.0,18867.0,0.73558537]
[1673568097673,0.16411129,18868.0,18867.0,0.73558537]
[1673568100176,0.0059793,18868.0,18867.0,0.73558537]
[1673568100423,0.0059793,18868.0,18867.0,1.22316964]
[1673568101204,0.0059793,18868.0,18867.0,1.06455337]
[1673568102758,0.0059793,18868.0,18867.0,1.22316964]
[1673568103521,0.0059793,18868.0,18867.0,1.06455337]
[1673568104298,0.0059793,18868.0,18867.0,1.22316964]
[1673568104537,0.0059793,18868.0,18867.0,1.06455337]
[1673568107032,0.0059793,18868.0,18867.0,0.63558537]
[1673568108780,0.0059793,18868.0,18867.0,0.96455337]
[1673568109051,0.0059793,18868.0,18867.0,0.63558537]
[1673568109544,0.0059793,18868.0,18867.0,0.96455337]
[1673568109791,0.0059793,18868.0,18867.0,0.63558537]
[1673568110294,0.0059793,18868.0,18867.0,0.96455337]
[1673568110501,0.0059793,18868.0,18867.0,1.12316964]
[1673568110787,0.0059793,18868.0,18867.0,1.22316964]
[1673568111527,0.0059793,18868.0,18867.0,0.58758427]
[1673568111803,1e-08,18868.0,18867.0,2.46818688]
[1673568113324,1e-08,18868.0,18867.0,2.57518688]
[1673568113824,1e-08,18868.0,18867.0,2.33726248]
[1673568114075,1e-08,18868.0,18867.0,2.73402375]
[1673568114586,1e-08,18868.0,18867.0,1.99562622]
[1673568114840,1e-08,18868.0,18867.0,1.99562578]
[1673568115081,1e-08,18868.0,18867.0,2.86239239]
[1673568115569,1e-08,18868.0,18867.0,2.75539239]
[1673568115815,1e-08,18868.0,18867.0,2.89539239]
[1673568116797,1e-08,18868.0,18867.0,2.35823156]
[1673568117054,1e-08,18868.0,18867.0,2.59628466]
[1673568117554,1e-08,18868.0,18867.0,2.75499239]
[1673568118785,1e-08,18868.0,18867.0,2.59621866]
[1673568120514,1e-08,18868.0,18867.0,2.27882662]
[1673568121212,1e-08,18868.0,18867.0,2.43744972]
[1673568122234,1e-08,18868.0,18867.0,2.43744933]
[1673568122968,1e-08,18868.0,18867.0,2.87255052]
[1673568123235,0.00667885,18869.0,18868.0,0.05471999]
[1673568123464,0.00667885,18869.0,18868.0,1.98035629]
[1673568123715,0.00667885,18869.0,18868.0,1.82142063]
[1673568124699,0.00667885,18869.0,18868.0,1.66276337]
[1673568124941,8.85e-06,18869.0,18868.0,3.51702614]
[1673568125187,1.369e-05,18870.0,18869.0,0.05472]
[1673568125434,1.369e-05,18870.0,18869.0,2.40980769]
[1673568125663,1.369e-05,18870.0,18869.0,2.10980769]
[1673568125915,1.369e-05,18870.0,18869.0,2.40980769]
[1673568126405,1.369e-05,18870.0,18869.0,2.54880769]
[1673568126638,1.369e-05,18870.0,18869.0,2.24880769]
[1673568126875,1.369e-05,18870.0,18869.0,2.83020769]
[1673568127381,1.369e-05,18870.0,18869.0,3.22601917]
[1673568127617,1.369e-05,18870.0,18869.0,2.51301765]
[1673568127871,1.369e-05,18870.0,18869.0,2.51401765]
[1673568128633,1.369e-05,18870.0,18869.0,2.37501765]
[1673568128866,0.00780026,18872.0,18869.0,2.67247551]
[1673568129103,0.00780026,18872.0,18871.0,0.71243916]
[1673568129356,2.6e-07,18872.0,18871.0,2.66749703]
[1673568129633,2.6e-07,18872.0,18871.0,2.6508574]
[1673568129871,2.6e-07,18872.0,18871.0,2.66726371]
[1673568130107,2.6e-07,18872.0,18871.0,2.3508574]
[1673568130355,2.6e-07,18872.0,18871.0,2.6508574]
[1673568130880,2.6e-07,18872.0,18871.0,3.9168574]
[1673568131119,2.6e-07,18872.0,18871.0,3.93325749]
[1673568131626,2.6e-07,18872.0,18871.0,4.07225749]
[1673568131863,2.6e-07,18872.0,18871.0,4.07015749]
[1673568132867,2.6e-07,18872.0,18871.0,3.59437091]
[1673568133132,2.6e-07,18872.0,18871.0,3.35719774]
[1673568133381,2.6e-07,18872.0,18871.0,3.91098857]
[1673568133644,2.6e-07,18872.0,18871.0,4.06967726]
[1673568134153,2.6e-07,18872.0,18871.0,3.05931621]
[1673568134396,2.6e-07,18872.0,18871.0,2.75140938]
[1673568134654,2.6e-07,18872.0,18871.0,3.22722723]
[1673568134920,2.6e-07,18872.0,18871.0,2.91082714]
[1673568135160,0.00780085,18875.0,18873.0,0.01464903]
[1673568135414,0.00780085,18875.0,18873.0,0.78221813]
[1673568135924,0.00780085,18875.0,18873.0,0.88221813]
[1673568136912,0.00780085,18875.0,18873.0,0.69521813]
[1673568137162,0.00780085,18875.0,18873.0,0.83421813]
[1673568138151,0.00780085,18875.0,18873.0,0.67621703]
[1673568138412,0.00780085,18875.0,18873.0,0.83421813]
[1673568139165,0.00780085,18875.0,18873.0,1.07121978]
[1673568139421,0.00780085,18875.0,18873.0,0.83421813]
[1673568139912,0.00780085,18875.0,18873.0,0.83414207]
[1673568140910,0.00780085,18875.0,18873.0,1.07114372]
[1673568141406,0.00780085,18875.0,18873.0,0.83414207]
[1673568141652,1e-08,18877.0,18874.0,0.1]
[1673568141909,1e-08,18877.0,18876.0,0.1]
[1673568142172,1e-08,18877.0,18876.0,0.428968]
[1673568142411,0.00776144,18878.0,18876.0,0.428968]
[1673568142679,0.13564495,18878.0,18877.0,0.328968]
[1673568143188,0.13564495,18878.0,18876.0,0.1]
[1673568143456,0.13564495,18878.0,18877.0,0.01]
[1673568143972,0.13564495,18878.0,18877.0,0.045]
[1673568144747,0.00776144,18878.0,18877.0,0.045]
[1673568145023,0.00776144,18878.0,18877.0,0.56336543]
[1673568145262,0.00776144,18878.0,18877.0,0.89233343]
[1673568145529,0.00776144,18878.0,18877.0,0.467568]
[1673568145821,0.00778238,18879.0,18878.0,0.11552287]
[1673568146040,0.00778238,18879.0,18878.0,0.44449087]
[1673568146311,0.00778238,18879.0,18878.0,0.53799087]
[1673568147100,0.00778238,18879.0,18878.0,1.08645584]
[1673568147313,0.00778238,18879.0,18878.0,1.12145584]
[1673568147815,0.00778238,18879.0,18878.0,0.57299087]
[1673568148064,0.00778238,18879.0,18878.0,1.12298484]
[1673568148582,0.00778238,18879.0,18878.0,0.57299087]
[1673568149079,0.00826318,18880.0,18879.0,0.1]
[1673568149080,0.00604556,18880.0,18879.0,0.1]
[1673568149311,0.00604556,18880.0,18879.0,1.11897045]
[1673568149809,0.00604556,18880.0,18879.0,1.02537045]
[1673568150305,0.00604556,18880.0,18879.0,1.06037045]
[1673568155283,0.00604556,18880.0,18879.0,0.63140245]
[1673568156031,0.00604556,18880.0,18879.0,0.96037045]
[1673568159062,0.00604556,18880.0,18879.0,1.06037045]
[1673568160919,0.00604556,18880.0,18879.0,0.96037045]
[1673568161172,0.00604556,18880.0,18879.0,0.63140245]
[1673568161932,0.00604556,18880.0,18879.0,0.96037045]
[1673568162196,0.00604556,18880.0,18879.0,0.63140245]
[1673568162695,0.00604556,18880.0,18879.0,0.96037045]
[1673568163457,0.00604556,18880.0,18879.0,0.63140245]
[1673568164453,0.00604556,18880.0,18879.0,0.96037045]
[1673568164735,0.00604556,18880.0,18879.0,0.63140245]
[1673568167949,0.2526972,18880.0,18879.0,0.035]
[1673568170968,0.2526972,18880.0,18879.0,0.03489277]
[1673568172588,0.14604556,18880.0,18879.0,0.03489277]
[1673568174341,0.30417755,18880.0,18879.0,0.03489277]
[1673568175809,0.14604556,18880.0,18879.0,0.03489277]
[1673568177025,0.30417755,18880.0,18879.0,0.03489277]
[1673568177514,0.14604556,18880.0,18879.0,0.66506862]
[1673568178246,0.30417755,18880.0,18879.0,0.66506862]
[1673568178491,0.16417755,18880.0,18879.0,0.66506862]
[1673568179005,0.40137553,18880.0,18879.0,0.03489277]
[1673568180039,0.00604556,18880.0,18879.0,0.03489277]
[1673568180774,0.00604556,18880.0,18879.0,0.13489277]
[1673568181263,0.00604556,18880.0,18879.0,1.12040304]
[1673568183015,0.00604556,18880.0,18879.0,1.27840414]
[1673568183258,0.00604556,18880.0,18879.0,1.12040304]
[1673568183796,0.00604556,18880.0,18879.0,1.02040304]
[1673568184034,0.00604556,18880.0,18879.0,0.69143504]
[1673568184311,0.16417755,18880.0,18879.0,0.69143504]
[1673568185535,0.00604556,18880.0,18879.0,0.69143504]
[1673568185780,0.16417755,18880.0,18879.0,1.02040304]
[1673568186028,0.16417755,18880.0,18879.0,0.69143504]
[1673568187078,0.30144851,18880.0,18879.0,0.03489277]
[1673568187326,0.53864649,18880.0,18879.0,0.03489277]
[1673568189560,0.53913307,18880.0,18879.0,0.03489277]
[1673568191851,0.30193509,18880.0,18879.0,0.03489277]
[1673568192315,0.53913307,18880.0,18879.0,0.03489277]
[1673568192594,0.30193509,18880.0,18879.0,0.03489277]
[1673568192833,0.53913307,18880.0,18879.0,0.03489277]
[1673568194076,0.69677848,18880.0,18879.0,0.03489277]
[1673568195055,0.3805145,18880.0,18879.0,0.03480463]
[1673568195306,0.53918752,18880.0,18879.0,0.03480463]
[1673568195552,0.16471858,18880.0,18879.0,0.03480463]
[1673568196310,0.40191656,18880.0,18879.0,0.03480463]
[1673568196553,0.16471858,18880.0,18879.0,0.64271862]
[1673568197812,0.00604556,18880.0,18879.0,0.97168662]
[1673568200110,0.16471858,18880.0,18879.0,0.64271862]
[1673568200573,0.16471858,18880.0,18879.0,0.63771862]
[1673568205073,0.00604556,18880.0,18879.0,0.63771862]
[1673568205316,0.16471858,18880.0,18879.0,0.63771862]
[1673568205574,0.16471858,18880.0,18879.0,0.02980463]
[1673568205822,0.54339301,18880.0,18879.0,0.02980463]
[1673568206320,0.00604556,18880.0,18879.0,0.02980463]
[1673568206563,0.00604556,18880.0,18879.0,0.45877263]
[1673568206803,0.00604556,18880.0,18879.0,0.35877263]
[1673568207554,0.00604556,18880.0,18879.0,0.61677373]
[1673568207813,0.00604556,18880.0,18879.0,1.15948361]
[1673568208069,0.00604556,18880.0,18879.0,1.94169847]
[1673568208322,0.00604556,18880.0,18879.0,1.53618526]
[1673568208580,0.00604556,18880.0,18879.0,2.31839034]
[1673568208831,0.00837542,18881.0,18880.0,0.1]
[1673568209081,0.00837542,18881.0,18880.0,0.428968]
[1673568210069,0.00837542,18881.0,18880.0,0.5869691]
[1673568210317,0.00837542,18881.0,18880.0,1.12125092]
[1673568212853,0.00837542,18881.0,18880.0,1.27925202]
[1673568213851,0.00837542,18881.0,18880.0,1.12125092]
[1673568215067,0.10677414,18883.0,18881.0,0.60279806]
[1673568215304,0.10677414,18883.0,18882.0,0.328968]
[1673568215545,0.26544716,18883.0,18881.0,0.60279806]
[1673568216787,0.26544716,18883.0,18881.0,0.50279806]
[1673568217038,0.50257182,18883.0,18881.0,0.50279806]
[1673568219305,0.26537384,18883.0,18881.0,0.50279806]
[1673568220601,0.26537384,18883.0,18882.0,0.328968]
[1673568220847,0.26537384,18883.0,18881.0,0.50279806]
[1673568221556,0.26537384,18883.0,18882.0,0.328968]
[1673568221808,0.26537384,18883.0,18881.0,0.50279806]
[1673568226604,0.50489,18886.0,18881.0,0.50279806]
[1673568226852,0.50489,18886.0,18880.0,0.1]
[1673568226853,0.29813938,18884.0,18882.0,0.31030494]
[1673568227115,0.29813938,18884.0,18882.0,0.1]
[1673568228133,0.1402,18886.0,18883.0,0.69328319]
[1673568228134,0.29883938,18885.0,18883.0,0.69328319]
[1673568228373,0.32948952,18885.0,18883.0,0.69328319]
[1673568229326,0.32948952,18885.0,18881.0,0.1]
[1673568229558,0.45843938,18884.0,18881.0,0.64956629]
[1673568230059,0.3,18884.0,18881.0,0.64956629]
[1673568230293,0.32948952,18885.0,18882.0,0.68670792]
[1673568230535,0.15843938,18884.0,18883.0,0.65597155]
[1673568230772,0.29883938,18885.0,18884.0,0.1]
[1673568233021,0.29883938,18885.0,18883.0,0.65597155]
[1673568234260,0.29883938,18885.0,18884.0,0.00055013]
[1673568237718,0.29883938,18885.0,18884.0,0.49877612]
[1673568238446,0.15843938,18885.0,18884.0,0.49877612]
[1673568241471,0.15843938,18885.0,18884.0,0.49740312]
[1673568243159,0.42840987,18885.0,18882.0,0.73081612]
[1673568243413,0.29819231,18884.0,18882.0,0.73081612]
[1673568243666,0.29819231,18884.0,18882.0,0.63081612]
[1673568243999,0.53587341,18884.0,18882.0,0.63081612]
[1673568244439,0.57083158,18884.0,18882.0,0.63081612]
[1673568245188,0.33315048,18884.0,18882.0,0.63081612]
[1673568245435,0.33315048,18884.0,18883.0,0.1]
[1673568245436,0.1397,18884.0,18883.0,0.1]
[1673568245917,0.18644449,18885.0,18883.0,0.1]
[1673568246187,0.15849231,18885.0,18883.0,0.1]
[1673568247192,0.15849231,18885.0,18884.0,0.52299394]
[1673568249702,0.15849231,18888.0,18886.0,0.328968]
[1673568249938,0.15849231,18888.0,18887.0,0.328968]
[1673568250180,0.15849231,18888.0,18887.0,0.1]
[1673568250421,0.3960902,18888.0,18887.0,0.1]
[1673568250668,0.3960902,18888.0,18886.0,0.61420468]
[1673568251163,0.1584091,18888.0,18886.0,0.61420468]
[1673568251668,0.1584091,18888.0,18886.0,0.71420468]
[1673568252714,0.03510601,18887.0,18885.0,0.1994963]
[1673568252956,0.27278711,18887.0,18884.0,0.79536545]
[1673568253746,0.27278711,18887.0,18884.0,0.04924627]
[1673568253747,0.53823122,18886.0,18884.0,0.04924627]
[1673568254038,1.25123212,18886.0,18884.0,0.04924627]
[1673568254250,0.2376811,18885.0,18882.0,0.85906162]
[1673568254491,0.3,18884.0,18882.0,0.90727458]
[1673568255224,0.2376811,18885.0,18882.0,0.21818088]
[1673568255480,0.02525121,18885.0,18883.0,0.69222103]
[1673568255729,0.85459682,18886.0,18883.0,0.69222103]
[1673568255961,0.85459682,18886.0,18883.0,0.90252597]
[1673568255962,0.57046959,18886.0,18883.0,0.90252597]
[1673568256210,0.3,18885.0,18883.0,0.69222103]
[1673568256480,0.57046959,18886.0,18883.0,0.69222103]
[1673568256729,0.55459682,18887.0,18884.0,0.21030494]
[1673568256974,0.4542716,18888.0,18884.0,0.31030494]
[1673568256975,0.69787777,18888.0,18884.0,0.31030494]
[1673568257217,0.38096205,18888.0,18885.0,0.21030494]
[1673568257702,0.38096205,18888.0,18885.0,0.39845325]
[1673568257935,0.24056205,18888.0,18886.0,0.54302448]
[1673568258180,0.38086205,18888.0,18886.0,0.54302448]
[1673568258691,0.72721584,18888.0,18886.0,0.54302448]
[1673568259675,0.3,18887.0,18886.0,0.54302448]
[1673568260466,0.45845876,18887.0,18886.0,0.54302448]
[1673568261972,0.15845876,18887.0,18886.0,0.54302448]
[1673568262223,0.56532781,18888.0,18886.0,0.54302448]
[1673568262465,0.42502781,18888.0,18886.0,0.54302448]
[1673568263946,1.00574666,18887.0,18884.0,0.85040849]
[1673568264192,0.72594666,18887.0,18884.0,0.85040849]
[1673568264430,0.15842428,18886.0,18884.0,0.85040849]
[1673568264920,0.1589744,18886.0,18884.0,0.85040849]
[1673568265159,0.15842428,18886.0,18884.0,0.85040849]
[1673568265653,0.8844381,18887.0,18885.0,0.69364154]
[1673568265654,0.86614666,18887.0,18885.0,0.69364154]
[1673568265897,0.18826556,18887.0,18884.0,0.31665775]
[1673568266145,0.18826556,18887.0,18884.0,0.98915279]
[1673568266403,0.42594666,18887.0,18884.0,0.98915279]
[1673568266953,0.56614666,18887.0,18884.0,0.98915279]
[1673568267690,0.18826556,18887.0,18885.0,0.55125978]
[1673568267944,0.15842428,18888.0,18886.0,0.1]
[1673568268193,0.15342428,18888.0,18887.0,0.06466]
[1673568268442,0.39110538,18888.0,18887.0,0.06466]
[1673568269190,0.39110538,18888.0,18887.0,0.01]
[1673568269690,0.69110538,18888.0,18887.0,0.06466]
[1673568269935,1.0453846,18889.0,18887.0,0.91437026]
[1673568269936,0.2376811,18889.0,18887.0,0.91437026]
[1673568270180,0.01199932,18891.0,18888.0,0.328968]
[1673568270181,0.70689614,18891.0,18888.0,0.328968]
[1673568270432,0.01199932,18891.0,18889.0,0.21030494]
[1673568270677,0.01199932,18891.0,18890.0,0.328968]
[1673568270926,0.0460076,18891.0,18890.0,0.328968]
[1673568271168,0.01199932,18891.0,18889.0,0.15214578]
[1673568271419,0.01199932,18891.0,18889.0,0.83033992]
[1673568271666,0.01199932,18891.0,18890.0,0.00037343]
[1673568271926,0.01199932,18891.0,18890.0,0.05503343]
[1673568273440,0.01199932,18891.0,18890.0,0.15503343]
[1673568274443,0.01254944,18891.0,18889.0,0.83033992]
[1673568274689,0.01199932,18891.0,18890.0,0.1]
[1673568276418,0.01254944,18891.0,18889.0,0.93033992]
[1673568276685,0.04045539,18891.0,18889.0,0.93033992]
[1673568277199,0.04045539,18891.0,18890.0,0.56339378]
[1673568277200,0.01199932,18891.0,18890.0,0.56339378]
[1673568277691,0.01199932,18891.0,18889.0,0.1]
[1673568277949,0.01199932,18891.0,18890.0,0.2906]
[1673568278207,0.01199932,18891.0,18890.0,0.619568]
[1673568278457,0.01199932,18891.0,18890.0,1.16756787]
[1673568278708,0.01199932,18891.0,18890.0,0.719568]
[1673568279207,0.00899864,18893.0,18891.0,0.6915974]
[1673568279462,0.00899864,18893.0,18892.0,0.328968]
[1673568279724,0.00899864,18893.0,18892.0,0.1]
[1673568279964,0.00899864,18893.0,18892.0,0.10037339]
[1673568281748,0.00899864,18893.0,18892.0,0.7691052]
[1673568283778,0.00899864,18893.0,18892.0,0.00037339]
[1673568284798,0.00954876,18893.0,18892.0,0.00037339]
[1673568285046,0.04478511,18893.0,18889.0,0.04818003]
[1673568285372,0.50116861,18892.0,18889.0,0.04818003]
[1673568285574,0.3,18891.0,18889.0,0.04818003]
[1673568285807,0.30055012,18891.0,18888.0,0.00019]
[1673568286055,0.1395,18889.0,18887.0,0.61178003]
[1673568286313,0.30055012,18891.0,18887.0,0.61178003]
[1673568286314,0.64423316,18891.0,18887.0,0.61178003]
[1673568286605,0.30055012,18891.0,18887.0,0.04949463]
[1673568286854,0.03016163,18890.0,18887.0,0.04949463]
[1673568287114,0.1391,18889.0,18887.0,0.04949463]
[1673568287362,0.00055012,18888.0,18887.0,0.04949463]
[1673568287613,0.00055012,18888.0,18885.0,0.69049679]
[1673568287614,0.1,18887.0,18885.0,0.69049679]
[1673568287878,0.4,18887.0,18885.0,0.69049679]
[1673568288132,0.3,18887.0,18885.0,0.69049679]
[1673568288374,0.3,18887.0,18886.0,0.67354913]
[1673568288622,0.44085012,18887.0,18886.0,0.67354913]
[1673568289165,0.44085012,18887.0,18884.0,0.00754728]
[1673568289413,0.30055012,18887.0,18884.0,0.00754728]
[1673568289640,0.30055012,18887.0,18884.0,0.53373147]
[1673568289890,0.03002328,18887.0,18884.0,0.53373147]
[1673568290423,0.03002328,18887.0,18884.0,0.00735728]
[1673568290424,0.50222817,18887.0,18884.0,0.00735728]
[1673568290650,0.4,18886.0,18884.0,0.00735728]
[1673568290917,0.09405012,18885.0,18884.0,0.00735728]
[1673568292213,0.0935,18885.0,18884.0,0.00735728]
[1673568293456,0.4201638,18886.0,18884.0,0.00735728]
[1673568293457,0.4201638,18886.0,18884.0,0.64834177]
[1673568293704,0.1201638,18886.0,18884.0,0.64834177]
[1673568294470,0.12071392,18886.0,18884.0,0.64834177]
[1673568296195,0.03500502,18885.0,18884.0,0.00735728]
[1673568296753,0.33500502,18885.0,18884.0,0.00735728]
[1673568297954,0.0929,18886.0,18884.0,0.21766222]
[1673568298200,0.03150501,18887.0,18884.0,0.83359878]
[1673568298439,0.03150501,18887.0,18885.0,0.1]
[1673568299671,0.03150501,18887.0,18884.0,0.62329384]
[1673568299918,0.0935,18885.0,18884.0,0.62329384]
[1673568300172,0.0935,18886.0,18884.0,0.00735728]
[1673568300173,0.3,18886.0,18884.0,0.00735728]
[1673568300410,0.1935,18885.0,18884.0,0.00735728]
[1673568300643,0.4935,18885.0,18884.0,0.00735728]
[1673568300887,0.3935,18885.0,18884.0,0.00735728]
[1673568301381,0.39405012,18885.0,18884.0,0.00735728]
[1673568301623,0.3935,18885.0,18884.0,0.702267]
[1673568301877,0.0927,18886.0,18884.0,0.700666]
[1673568302354,0.09325012,18886.0,18884.0,0.700666]
[1673568303115,0.0927,18886.0,18884.0,0.700666]
[1673568303600,0.09325012,18886.0,18884.0,0.700666]
[1673568303839,0.12729172,18886.0,18884.0,0.700666]
[1673568306346,0.12690967,18886.0,18884.0,0.700666]
[1673568306585,0.12635955,18886.0,18884.0,0.700666]
[1673568310181,0.00055012,18885.0,18884.0,0.00575628]
[1673568310437,0.09365012,18885.0,18884.0,0.00575628]
[1673568310905,0.57401327,18885.0,18884.0,0.00575628]
[1673568311162,0.53241087,18885.0,18884.0,0.00575628]
[1673568311900,0.62581087,18885.0,18884.0,2.8e-07]
[1673568312140,0.62581087,18885.0,18881.0,0.7007761]
[1673568312390,0.0935,18882.0,18881.0,0.7005861]
[1673568312864,0.0935,18882.0,18881.0,0.007566]
[1673568313113,0.12167284,18883.0,18881.0,0.007566]
[1673568313837,0.00055012,18882.0,18881.0,0.007566]
[1673568314328,0.0932,18883.0,18881.0,0.60299673]
[1673568315104,0.12353208,18883.0,18881.0,0.60299673]
[1673568315882,0.00055012,18882.0,18881.0,0.60299673]
[1673568316093,0.12353208,18883.0,18881.0,0.60299673]
[1673568317850,0.1240822,18883.0,18881.0,0.60299673]
[1673568318344,0.02511105,18882.0,18881.0,0.60299673]
[1673568322321,0.0932,18883.0,18881.0,0.60299673]
[1673568324030,0.0932,18883.0,18882.0,0.5062028]
[1673568326769,0.37820633,18883.0,18881.0,0.007566]
[1673568327019,0.52442063,18882.0,18881.0,0.007566]
[1673568327305,0.68263811,18882.0,18881.0,0.007566]
[1673568327520,0.64481748,18882.0,18881.0,0.007566]
[1673568327767,0.4866,18882.0,18881.0,0.007566]
[1673568328012,0.3935,18882.0,18881.0,0.007566]
[1673568330504,0.3,18882.0,18881.0,0.007566]
[1673568330738,0.33496123,18882.0,18881.0,0.007566]
[1673568331736,0.32996123,18882.0,18881.0,0.007566]
[1673568332952,0.32996123,18882.0,18881.0,0.06776443]
[1673568332953,0.03496123,18882.0,18881.0,0.06776443]
[1673568333199,0.03496123,18882.0,18881.0,0.007566]
[1673568333468,0.06020604,18882.0,18881.0,0.007566]
[1673568335454,0.02524481,18882.0,18881.0,0.007566]